fUST/lending_fUST_20240906
["ID","MTS","AMOUNT","RATE_DAILY","PERIOD"]
[337281175,1725573136333,-970.45,0.00027123,2]
[337281176,1725573136343,-428.76316622,0.00027123,2]
[337281177,1725573136353,-875.36,0.00027123,2]
[337281178,1725573136363,-1709.21,0.00027123,2]
[337281179,1725573136374,-5424.64,0.00027123,2]
[337281180,1725573136384,-1320.86,0.00027123,2]
[337281181,1725573136399,-646.37,0.00027123,2]
[337281182,1725573136423,-777.39,0.00027123,2]
[337281183,1725573136440,-4959.4,0.00027123,2]
[337281184,1725573136462,-1196.83,0.00027123,2]
[337281185,1725573136486,-589.02,0.00027123,2]
[337281186,1725573136505,-500.0,0.00027123,2]
[337281187,1725573136525,-948.09,0.00027123,2]
[337281188,1725573136543,-500.0,0.00027123,2]
[337281189,1725573136561,-946.95,0.00027123,2]
[337281190,1725573136582,-6005.41,0.00027123,2]
[337281191,1725573136598,-1557.31,0.00027123,2]
[337281192,1725573136614,-7130.97,0.00027123,2]
[337281193,1725573136633,-983.46,0.00027123,2]
[337281194,1725573136653,-788.94,0.00027123,2]
[337281195,1725573136670,-1361.66,0.00027123,2]
[337281196,1725573136687,-3476.04,0.00027123,2]
[337281197,1725573136701,-745.29,0.00027123,2]
[337281198,1725573136716,-500.0,0.00027123,2]
[337281199,1725573136732,-500.0,0.00027123,2]
[337281200,1725573136747,-500.0,0.00027123,2]
[337281201,1725573136763,-1053.94,0.00027123,2]
[337281202,1725573136778,-899.19,0.00027123,2]
[337281203,1725573136794,-1880.59,0.00027123,2]
[337281204,1725573136809,-563.87,0.00027123,2]
[337281205,1725573136825,-600.0,0.00027187,2]
[337281206,1725573136839,-500.0,0.00027199,2]
[337281207,1725573136854,-151.3363603,0.00027205,2]
[337281208,1725573136868,-900.0,0.00027211,2]
[337281209,1725573136883,-900.0,0.00027216,2]
[337281210,1725573136897,-500.0,0.0002729,2]
[337281211,1725573136915,-151.3363603,0.00027315,2]
[337281212,1725573136935,-900.0,0.00027322,2]
[337281213,1725573136951,-523.0,0.0002734,2]
[337281214,1725573136966,-416.1787281,0.0002738,2]
[337281215,1725573136982,-600.0,0.00027392,2]
[337281216,1725573136996,-1061.25,0.00027397,2]
[337281217,1725573137010,-888.02,0.00027397,2]
[337281218,1725573137024,-1260.83,0.00027397,2]
[337281219,1725573137040,-829.3,0.00027397,2]
[337281220,1725573137055,-500.0,0.00027397,2]
[337281221,1725573137068,-756.67,0.00027397,2]
[337281222,1725573137082,-500.0,0.00027397,2]
[337281223,1725573137096,-529.72,0.00027397,2]
[337281224,1725573137112,-500.0,0.00027397,2]
[337281225,1725573137127,-1089.23,0.00027397,2]
[337281226,1725573137143,-776.91,0.00027397,2]
[337281227,1725573137159,-1257.36,0.00027397,2]
[337281228,1725573137174,-1799.22,0.00027397,2]
[337281229,1725573137189,-872.21,0.00027397,2]
[337281230,1725573137203,-690.94,0.00027397,2]
[337281231,1725573137219,-500.0,0.00027397,2]
[337281232,1725573137235,-500.0,0.00027397,2]
[337281233,1725573137252,-722.69,0.00027397,2]
[337281234,1725573137267,-1492.06,0.00027397,2]
[337281235,1725573137284,-500.0,0.00027397,2]
[337281236,1725573137299,-500.0,0.00027397,2]
[337281237,1725573137316,-802.19,0.00027397,2]
[337281238,1725573137333,-552.14,0.00027397,2]
[337281239,1725573137350,-990.72,0.00027397,2]
[337281240,1725573137364,-967.82,0.00027397,2]
[337281241,1725573137378,-888.41,0.00027397,2]
[337281242,1725573137393,-606.39,0.00027397,2]
[337281243,1725573137408,-500.0,0.00027397,2]
[337281244,1725573137422,-1160.38,0.00027397,2]
[337281245,1725573137437,-1034.45,0.00027397,2]
[337281246,1725573137451,-389.73,0.00027397,2]
[337281247,1725573137466,-1055.78,0.00027397,2]
[337281248,1725573137479,-709.32,0.00027397,2]
[337281249,1725573137493,-528.03,0.00027397,2]
[337281250,1725573137508,-500.0,0.00027397,2]
[337281251,1725573137522,-1309.6,0.00027397,2]
[337281252,1725573137537,-597.29,0.00027397,2]
[337281253,1725573137553,-707.89,0.00027397,2]
[337281254,1725573137568,-500.0,0.00027397,2]
[337281255,1725573137583,-637.08,0.00027397,2]
[337281256,1725573137597,-500.0,0.00027397,2]
[337281257,1725573137611,-500.0,0.00027397,2]
[337281258,1725573137625,-1529.25,0.00027397,2]
[337281259,1725573137639,-512.48,0.00027397,2]
[337281260,1725573137653,-1497.88,0.00027397,2]
[337281261,1725573137667,-3384.84,0.00027397,2]
[337281262,1725573137680,-1224.58,0.00027397,2]
[337281263,1725573137693,-1508.59,0.00027397,2]
[337281264,1725573137707,-948.48,0.00027397,2]
[337281265,1725573137722,-509.6,0.00027397,2]
[337281266,1725573137736,-500.0,0.00027397,2]
[337281267,1725573137751,-3334.83,0.00027397,2]
[337281268,1725573137765,-956.86,0.00027397,2]
[337281269,1725573137779,-807.1,0.00027397,2]
[337281270,1725573137793,-545.62,0.00027397,2]
[337281271,1725573137807,-570.61961824,0.00027397,2]
[337281272,1725573137821,-1234.38,0.00027397,2]
[337281273,1725573137836,-1688.93,0.00027397,2]
[337281274,1725573137850,-229.14104728,0.00027397,2]
[337281275,1725573137865,-775.84,0.00027397,2]
[337281276,1725573137879,-6155.32,0.00027397,2]
[337281277,1725573137893,-600.0,0.00027397,2]
[337281278,1725573137907,-1513.75,0.00027397,2]
[337281279,1725573137921,-1384.94,0.00027397,2]
[337281280,1725573137935,-891.8,0.00027397,2]
[337281281,1725573137951,-1454.37,0.00027397,2]
[337281282,1725573137965,-727.07,0.00027397,2]
[337281283,1725573137982,-803.53,0.00027397,2]
[337281284,1725573137997,-3161.3,0.00027397,2]
[337281285,1725573138013,-1185.19,0.00027397,2]
[337281286,1725573138028,-831.41,0.00027397,2]
[337281287,1725573138042,-1174.57,0.00027397,2]
[337281288,1725573138056,-7144.8,0.00027397,2]
[337281289,1725573138071,-500.0,0.00027397,2]
[337281290,1725573138085,-500.0,0.00027397,2]
[337281291,1725573138101,-11733.4,0.00027397,2]
[337281292,1725573138344,-4398.52,0.00027397,2]
[337281293,1725573138358,-1185.15,0.00027397,2]
[337281294,1725573138367,-544.5,0.00027397,2]
[337281295,1725573138378,-1466.8,0.00027397,2]
[337281296,1725573138387,-13227.74,0.00027397,2]
[337281297,1725573138397,-8686.28,0.00027397,2]
[337281298,1725573138407,-1353.11,0.00027397,2]
[337281299,1725573138416,-704.28,0.00027397,2]
[337281300,1725573138425,-590.9,0.00027397,2]
[337281301,1725573138435,-1233.53,0.00027397,2]
[337281302,1725573138444,-1358.39,0.00027397,2]
[337281303,1725573138454,-900.4,0.00027397,2]
[337281304,1725573138464,-823.63,0.00027397,2]
[337281305,1725573138473,-509.12,0.00027397,2]
[337281306,1725573138482,-7723.59,0.00027397,2]
[337281307,1725573138492,-1103.42,0.00027397,2]
[337281308,1725573138501,-628.33,0.00027397,2]
[337281309,1725573138510,-500.0,0.00027397,2]
[337281310,1725573138520,-2578.29,0.00027397,2]
[337281311,1725573138530,-500.0,0.00027397,2]
[337281312,1725573138539,-1133.56,0.00027397,2]
[337281313,1725573138551,-1129.73,0.00027397,2]
[337281314,1725573138560,-1144.17,0.00027397,2]
[337281315,1725573138570,-938.87,0.00027397,2]
[337281316,1725573138579,-3954.36,0.00027397,2]
[337281317,1725573138591,-563.72,0.00027397,2]
[337281318,1725573138600,-828.83,0.00027397,2]
[337281319,1725573138610,-7650.67,0.00027397,2]
[337281320,1725573138620,-686.81,0.00027397,2]
[337281321,1725573138629,-638.15,0.00027397,2]
[337281322,1725573138643,-970.45,0.00027397,2]
[337281323,1725573138653,-875.36,0.00027397,2]
[337281324,1725573138663,-5424.64,0.00027397,2]
[337281325,1725573138672,-1709.21,0.00027397,2]
[337281326,1725573138682,-1320.86,0.00027397,2]
[337281327,1725573138691,-777.39,0.00027397,2]
[337281328,1725573138701,-646.37,0.00027397,2]
[337281329,1725573138710,-4959.4,0.00027397,2]
[337281330,1725573138720,-1196.83,0.00027397,2]
[337281331,1725573138729,-589.02,0.00027397,2]
[337281332,1725573138739,-500.0,0.00027397,2]
[337281333,1725573138748,-948.09,0.00027397,2]
[337281334,1725573138760,-500.0,0.00027397,2]
[337281335,1725573138771,-946.95,0.00027397,2]
[337281336,1725573138780,-6005.41,0.00027397,2]
[337281337,1725573138790,-1557.31,0.00027397,2]
[337281338,1725573138800,-7130.97,0.00027397,2]
[337281339,1725573138810,-983.46,0.00027397,2]
[337281340,1725573138819,-788.94,0.00027397,2]
[337281341,1725573138829,-1361.66,0.00027397,2]
[337281342,1725573138839,-3476.04,0.00027397,2]
[337281343,1725573138848,-745.29,0.00027397,2]
[337281344,1725573138859,-500.0,0.00027397,2]
[337281345,1725573138869,-500.0,0.00027397,2]
[337281346,1725573138878,-500.0,0.00027397,2]
[337281347,1725573138888,-1053.94,0.00027397,2]
[337281348,1725573138898,-899.19,0.00027397,2]
[337281349,1725573138909,-1880.59,0.00027397,2]
[337281350,1725573138919,-563.87,0.00027397,2]
[337281351,1725573138929,-583.57,0.000274,7]
[337281352,1725573138939,-200.0,0.000274,7]
[337281353,1725573138949,-34640.52,0.000274,14]
[337281354,1725573138959,-151.3363603,0.00027425,2]
[337281355,1725573138969,-500.0,0.00027437,2]
[337281356,1725573138979,-12442.20809173,0.000275,2]
[337281357,1725573138989,-1798.9570612,0.00027501,2]
[337281358,1725573138999,-151.3363603,0.00027534,2]
[337281359,1725573139009,-900.0,0.00027558,2]
[337281360,1725573139019,-902.82935696,0.00027617,2]
[337281361,1725573139028,-151.3363603,0.00027644,2]
[337281362,1725573139038,-500.0,0.00027646,2]
[337281363,1725573139048,-1061.25,0.00027671,2]
[337281364,1725573139058,-888.02,0.00027671,2]
[337281365,1725573139071,-1260.83,0.00027671,2]
[337281366,1725573139081,-829.3,0.00027671,2]
[337281367,1725573139091,-500.0,0.00027671,2]
[337281368,1725573139101,-756.67,0.00027671,2]
[337281369,1725573139111,-613.69863122,0.00027671,2]
[337281370,1725573139120,-529.72,0.00027671,2]
[337281371,1725573139130,-500.0,0.00027671,2]
[337281372,1725573139141,-1089.23,0.00027671,2]
[337281373,1725573139151,-776.91,0.00027671,2]
[337281374,1725573139161,-1257.36,0.00027671,2]
[337281375,1725573139171,-1799.22,0.00027671,2]
[337281376,1725573139181,-872.21,0.00027671,2]
[337281377,1725573139191,-690.94,0.00027671,2]
[337281378,1725573139200,-170.99832339,0.00027671,2]
[337281379,1725573139211,-500.0,0.00027671,2]
[337281380,1725573139221,-722.69,0.00027671,2]
[337281381,1725573139230,-1492.06,0.00027671,2]
[337281382,1725573139240,-500.15148643,0.00027671,2]
[337281383,1725573139250,-500.0,0.00027671,2]
[337281384,1725573139260,-802.19,0.00027671,2]
[337281385,1725573139270,-552.14,0.00027671,2]
[337281386,1725573139281,-990.72,0.00027671,2]
[337281387,1725573139290,-967.82,0.00027671,2]
[337281388,1725573139301,-888.41,0.00027671,2]
[337281389,1725573139310,-606.39,0.00027671,2]
[337281390,1725573139319,-198.82380601,0.00027671,2]
[337281391,1725573139329,-1160.38,0.00027671,2]
[337281392,1725573139339,-1034.45,0.00027671,2]
[337281393,1725573139349,-1055.78,0.00027671,2]
[337281394,1725573139359,-709.32,0.00027671,2]
[337281395,1725573139369,-528.03,0.00027671,2]
[337281396,1725573139378,-387.08328807,0.00027671,2]
[337281397,1725573139388,-1309.6,0.00027671,2]
[337281398,1725573139398,-597.29,0.00027671,2]
[337281399,1725573139412,-707.89,0.00027671,2]
[337281400,1725573139422,-500.0,0.00027671,2]
[337281401,1725573139432,-637.08,0.00027671,2]
[337281402,1725573139441,-367.55844019,0.00027671,2]
[337281403,1725573139452,-629.9692587,0.00027671,2]
[337281404,1725573139461,-1529.25,0.00027671,2]
[337281405,1725573139470,-512.48,0.00027671,2]
[337281406,1725573139479,-1497.88,0.00027671,2]
[337281407,1725573139489,-3384.84,0.00027671,2]
[337281408,1725573139499,-1224.58,0.00027671,2]
[337281409,1725573139508,-1508.59,0.00027671,2]
[337281410,1725573139518,-948.48,0.00027671,2]
[337281411,1725573139527,-509.6,0.00027671,2]
[337281412,1725573139536,-420.07506285,0.00027671,2]
[337281413,1725573139549,-3334.83,0.00027671,2]
[337281414,1725573139558,-956.86,0.00027671,2]
[337281415,1725573139567,-807.1,0.00027671,2]
[337281416,1725573139577,-545.62,0.00027671,2]
[337281417,1725573139587,-1234.38,0.00027671,2]
[337281418,1725573139596,-1688.93,0.00027671,2]
[337281419,1725573139606,-775.84,0.00027671,2]
[337281420,1725573139615,-6155.32,0.00027671,2]
[337281421,1725573139626,-1513.75,0.00027671,2]
[337281422,1725573139635,-1384.94,0.00027671,2]
[337281423,1725573139645,-891.8,0.00027671,2]
[337281424,1725573139656,-1454.37,0.00027671,2]
[337281425,1725573139665,-727.07,0.00027671,2]
[337281426,1725573139674,-803.53,0.00027671,2]
[337281427,1725573139684,-3161.3,0.00027671,2]
[337281428,1725573139693,-1185.19,0.00027671,2]
[337281429,1725573139703,-831.41,0.00027671,2]
[337281430,1725573139712,-1174.57,0.00027671,2]
[337281431,1725573139722,-500.0,0.00027671,2]
[337281432,1725573139731,-7144.8,0.00027671,2]
[337281433,1725573139742,-619.56,0.00027671,2]
[337281434,1725573139751,-11733.4,0.00027671,2]
[337281435,1725573139760,-4398.52,0.00027671,2]
[337281436,1725573139770,-1185.15,0.00027671,2]
[337281437,1725573139780,-544.5,0.00027671,2]
[337281438,1725573139789,-1466.8,0.00027671,2]
[337281439,1725573139798,-13227.74,0.00027671,2]
[337281440,1725573139808,-8686.28,0.00027671,2]
[337281441,1725573139817,-1353.11,0.00027671,2]
[337281442,1725573139826,-704.28,0.00027671,2]
[337281443,1725573139835,-590.9,0.00027671,2]
[337281444,1725573139845,-1233.53,0.00027671,2]
[337281445,1725573139854,-500.0,0.00027671,2]
[337281446,1725573139863,-508.36230183,0.00027671,2]
[337281447,1725573139873,-1358.39,0.00027671,2]
[337281448,1725573139883,-900.4,0.00027671,2]
[337281449,1725573139893,-823.63,0.00027671,2]
[337281450,1725573139902,-509.12,0.00027671,2]
[337281451,1725573139922,-7723.59,0.00027671,2]
[337281452,1725573139931,-1103.42,0.00027671,2]
[337281453,1725573139940,-628.33,0.00027671,2]
[337281454,1725573139949,-500.0,0.00027671,2]
[337281455,1725573139959,-2578.29,0.00027671,2]
[337281456,1725573139968,-500.0,0.00027671,2]
[337281457,1725573139977,-1133.56,0.00027671,2]
[337281458,1725573139986,-1129.73,0.00027671,2]
[337281459,1725573139996,-1144.17,0.00027671,2]
[337281460,1725573140006,-938.87,0.00027671,2]
[337281461,1725573140015,-3954.36,0.00027671,2]
[337281462,1725573140025,-563.72,0.00027671,2]
[337281463,1725573140035,-828.83,0.00027671,2]
[337281464,1725573140045,-7650.67,0.00027671,2]
[337281465,1725573140054,-686.81,0.00027671,2]
[337281466,1725573140063,-638.15,0.00027671,2]
[337281467,1725573140073,-970.45,0.00027671,2]
[337281468,1725573140082,-875.36,0.00027671,2]
[337281469,1725573140092,-5424.64,0.00027671,2]
[337281470,1725573140101,-1709.21,0.00027671,2]
[337281471,1725573140111,-1320.86,0.00027671,2]
[337281472,1725573140120,-646.37,0.00027671,2]
[337281473,1725573140130,-4959.4,0.00027671,2]
[337281474,1725573140139,-777.39,0.00027671,2]
[337281475,1725573140149,-1196.83,0.00027671,2]
[337281476,1725573140161,-589.02,0.00027671,2]
[337281477,1725573140171,-500.0,0.00027671,2]
[337281478,1725573140181,-948.09,0.00027671,2]
[337281479,1725573140192,-538.08515826,0.00027671,2]
[337281480,1725573140202,-946.95,0.00027671,2]
[337281481,1725573140211,-6005.41,0.00027671,2]
[337281482,1725573140221,-1557.31,0.00027671,2]
[337281483,1725573140230,-7130.97,0.00027671,2]
[337281484,1725573140240,-983.46,0.00027671,2]
[337281485,1725573140249,-788.94,0.00027671,2]
[337281486,1725573140258,-1361.66,0.00027671,2]
[337281487,1725573140268,-3476.04,0.00027671,2]
[337281488,1725573140277,-745.29,0.00027671,2]
[337281489,1725573140287,-264.37974062,0.00027671,2]
[337281490,1725573140297,-637.59299419,0.00027671,2]
[337281491,1725573140308,-500.0,0.00027671,2]
[337281492,1725573140318,-1053.94,0.00027671,2]
[337281493,1725573140329,-899.19,0.00027671,2]
[337281494,1725573140340,-1880.59,0.00027671,2]
[337281495,1725573140351,-563.87,0.00027671,2]
[337281496,1725573140360,-500.0,0.00027695,2]
[337281497,1725573140372,-500.0,0.000277,2]
[337281498,1725573140383,-151.3363603,0.00027781,2]
[337281499,1725573140393,-151.3363603,0.0002789,2]
[337281500,1725573140403,-2062.23,0.000279,14]
[337281501,1725573140413,-500.0,0.00027918,2]
[337281502,1725573140423,-500.0,0.00027934,2]
[337281503,1725573140432,-500.0,0.00027934,2]
[337281504,1725573140442,-500.0,0.00027935,2]
[337281505,1725573140453,-600.0,0.00027935,2]
[337281506,1725573140463,-500.0,0.00027936,2]
[337281507,1725573140474,-500.0,0.00027936,2]
[337281508,1725573140485,-500.0,0.00027936,2]
[337281509,1725573140495,-500.0,0.00027942,2]
[337281510,1725573140505,-500.0,0.00027944,2]
[337281511,1725573140515,-1061.25,0.00027945,2]
[337281512,1725573140525,-888.02,0.00027945,2]
[337281513,1725573140536,-1260.83,0.00027945,2]
[337281514,1725573140551,-829.3,0.00027945,2]
[337281515,1725573140562,-524.79235031,0.00027945,2]
[337281516,1725573140574,-756.67,0.00027945,2]
[337281517,1725573140587,-529.72,0.00027945,2]
[337281518,1725573140599,-209.56294967,0.00027945,2]
[337281519,1725573140611,-1089.23,0.00027945,2]
[337281520,1725573140625,-776.91,0.00027945,2]
[337281521,1725573140637,-1257.36,0.00027945,2]
[337281522,1725573140648,-1799.22,0.00027945,2]
[337281523,1725573140660,-872.21,0.00027945,2]
[337281524,1725573140670,-690.94,0.00027945,2]
[337281525,1725573140681,-500.0,0.00027945,2]
[337281526,1725573140692,-722.69,0.00027945,2]
[337281527,1725573140703,-1492.06,0.00027945,2]
[337281528,1725573140714,-248.6,0.00027945,2]
[337281529,1725573140723,-802.19,0.00027945,2]
[337281530,1725573140733,-552.14,0.00027945,2]
[337281531,1725573140744,-990.72,0.00027945,2]
[337281532,1725573140754,-967.82,0.00027945,2]
[337281533,1725573140766,-888.41,0.00027945,2]
[337281534,1725573140776,-606.39,0.00027945,2]
[337281535,1725573140787,-1160.38,0.00027945,2]
[337281536,1725573140798,-1034.45,0.00027945,2]
[337281537,1725573140809,-1055.78,0.00027945,2]
[337281538,1725573140821,-709.32,0.00027945,2]
[337281539,1725573140831,-528.03,0.00027945,2]
[337281540,1725573140842,-1309.6,0.00027945,2]
[337281541,1725573140855,-597.29,0.00027945,2]
[337281542,1725573140867,-707.89,0.00027945,2]
[337281543,1725573140877,-500.0,0.00027945,2]
[337281544,1725573140889,-637.08,0.00027945,2]
[337281545,1725573140899,-1529.25,0.00027945,2]
[337281546,1725573140909,-512.48,0.00027945,2]
[337281547,1725573140919,-1497.88,0.00027945,2]
[337281548,1725573140929,-3384.84,0.00027945,2]
[337281549,1725573140939,-1224.58,0.00027945,2]
[337281550,1725573140949,-1508.59,0.00027945,2]
[337281551,1725573140961,-948.48,0.00027945,2]
[337281552,1725573140972,-509.6,0.00027945,2]
[337281553,1725573140983,-3334.83,0.00027945,2]
[337281554,1725573140995,-956.86,0.00027945,2]
[337281555,1725573141006,-807.1,0.00027945,2]
[337281556,1725573141017,-545.62,0.00027945,2]
[337281557,1725573141028,-1234.38,0.00027945,2]
[337281558,1725573141038,-1688.93,0.00027945,2]
[337281559,1725573141049,-775.84,0.00027945,2]
[337281560,1725573141061,-6155.32,0.00027945,2]
[337281561,1725573141071,-1513.75,0.00027945,2]
[337281562,1725573141083,-1384.94,0.00027945,2]
[337281563,1725573141094,-891.8,0.00027945,2]
[337281564,1725573141105,-1454.37,0.00027945,2]
[337281565,1725573141116,-727.07,0.00027945,2]
[337281566,1725573141127,-803.53,0.00027945,2]
[337281567,1725573141139,-3161.3,0.00027945,2]
[337281568,1725573141152,-1185.19,0.00027945,2]
[337281569,1725573141163,-831.41,0.00027945,2]
[337281570,1725573141173,-1174.57,0.00027945,2]
[337281571,1725573141184,-7144.8,0.00027945,2]
[337281572,1725573141196,-280.42208716,0.00027945,2]
[337281573,1725573141207,-11733.4,0.00027945,2]
[337281574,1725573141217,-4398.52,0.00027945,2]
[337281575,1725573141227,-1185.15,0.00027945,2]
[337281576,1725573141238,-544.5,0.00027945,2]
[337281577,1725573141247,-1466.8,0.00027945,2]
[337281578,1725573141257,-13227.74,0.00027945,2]
[337281579,1725573141416,-8686.28,0.00027945,2]
[337281580,1725573141428,-1353.11,0.00027945,2]
[337281581,1725573141437,-704.28,0.00027945,2]
[337281582,1725573141446,-590.9,0.00027945,2]
[337281583,1725573141455,-1233.53,0.00027945,2]
[337281584,1725573141465,-1358.39,0.00027945,2]
[337281585,1725573141475,-900.4,0.00027945,2]
[337281586,1725573141487,-823.63,0.00027945,2]
[337281587,1725573141497,-509.12,0.00027945,2]
[337281588,1725573141507,-7723.59,0.00027945,2]
[337281589,1725573141517,-1103.42,0.00027945,2]
[337281590,1725573141528,-628.33,0.00027945,2]
[337281591,1725573141538,-170.13995903,0.00027945,2]
[337281592,1725573141552,-2578.29,0.00027945,2]
[337281593,1725573141565,-500.0,0.00027945,2]
[337281594,1725573141574,-1133.56,0.00027945,2]
[337281595,1725573141584,-1129.73,0.00027945,2]
[337281596,1725573141595,-1144.17,0.00027945,2]
[337281597,1725573141607,-938.87,0.00027945,2]
[337281598,1725573141618,-3954.36,0.00027945,2]
[337281599,1725573141630,-563.72,0.00027945,2]
[337281600,1725573141642,-828.83,0.00027945,2]
[337281601,1725573141655,-7650.67,0.00027945,2]
[337281602,1725573141666,-686.81,0.00027945,2]
[337281603,1725573141677,-638.15,0.00027945,2]
[337281604,1725573141688,-970.45,0.00027945,2]
[337281605,1725573141699,-875.36,0.00027945,2]
[337281606,1725573141711,-5424.64,0.00027945,2]
[337281607,1725573141721,-1320.86,0.00027945,2]
[337281608,1725573141730,-1709.21,0.00027945,2]
[337281609,1725573141742,-646.37,0.00027945,2]
[337281610,1725573141754,-777.39,0.00027945,2]
[337281611,1725573141764,-4959.4,0.00027945,2]
[337281612,1725573141774,-1196.83,0.00027945,2]
[337281613,1725573141783,-589.02,0.00027945,2]
[337281614,1725573141793,-500.0,0.00027945,2]
[337281615,1725573141802,-948.09,0.00027945,2]
[337281616,1725573141812,-946.95,0.00027945,2]
[337281617,1725573141821,-6005.41,0.00027945,2]
[337281618,1725573141830,-1557.31,0.00027945,2]
[337281619,1725573141840,-7130.97,0.00027945,2]
[337281620,1725573141849,-983.46,0.00027945,2]
[337281621,1725573141858,-788.94,0.00027945,2]
[337281622,1725573141867,-1361.66,0.00027945,2]
[337281623,1725573141877,-745.29,0.00027945,2]
[337281624,1725573141886,-3476.04,0.00027945,2]
[337281625,1725573141895,-206.97162475,0.00027945,2]
[337281626,1725573141904,-1053.94,0.00027945,2]
[337281627,1725573141914,-899.19,0.00027945,2]
[337281628,1725573141923,-1880.59,0.00027945,2]
[337281629,1725573141933,-563.87,0.00027945,2]
[337281630,1725573141942,-500.0,0.00027947,2]
[337281631,1725573141951,-500.0,0.00027958,2]
[337281632,1725573141960,-500.0,0.00027959,2]
[337281633,1725573141970,-600.0,0.0002796,2]
[337281634,1725573141980,-500.0,0.00027961,2]
[337281635,1725573141989,-500.0,0.00027963,2]
[337281636,1725573141997,-500.0,0.00027968,2]
[337281637,1725573142006,-500.0,0.00027968,2]
[337281638,1725573142015,-500.0,0.0002797,2]
[337281639,1725573142025,-500.0,0.00027971,2]
[337281640,1725573142034,-500.0,0.00027977,2]
[337281641,1725573142043,-500.0,0.00027979,2]
[337281642,1725573142052,-500.0,0.00027981,2]
[337281643,1725573142061,-500.0,0.00027981,2]
[337281644,1725573142070,-500.0,0.00027989,2]
[337281645,1725573142079,-31673.73684852,0.0002799,2]
[337281646,1725573142088,-500.0,0.00027991,2]
[337281647,1725573142097,-500.0,0.00027991,2]
[337281648,1725573142107,-500.0,0.00027992,2]
[337281649,1725573142116,-500.0,0.00027992,2]
[337281650,1725573142125,-707.26,0.00028,14]
[337281651,1725573142135,-151.3363603,0.00028,2]
[337281652,1725573142144,-823.0,0.00028096,2]
[337281653,1725573142157,-600.0,0.00028131,2]
[337281654,1725573142166,-900.0,0.00028174,2]
[337281655,1725573142180,-542.91252447,0.00028181,2]
[337281656,1725573142191,-1061.25,0.00028219,2]
[337281657,1725573142202,-888.22128055,0.00028219,2]
[337281658,1725573142212,-1261.05390819,0.00028219,2]
[337281659,1725573142224,-829.31336941,0.00028219,2]
[337281660,1725573142234,-756.72567718,0.00028219,2]
[337281661,1725573142246,-529.92180704,0.00028219,2]
[337281662,1725573142259,-1089.39691989,0.00028219,2]
[337281663,1725573142270,-776.97,0.00028219,2]
[337281664,1725573142280,-1257.46541659,0.00028219,2]
[337281665,1725573142290,-1799.26775943,0.00028219,2]
[337281666,1725573142301,-872.39202847,0.00028219,2]
[337281667,1725573142312,-691.14348153,0.00028219,2]
[337281668,1725573142324,-330.86257228,0.00028219,2]
[337281669,1725573142335,-722.81919993,0.00028219,2]
[337281670,1725573142346,-1492.24887623,0.00028219,2]
[337281671,1725573142358,-802.39327416,0.00028219,2]
[337281672,1725573142369,-552.35459559,0.00028219,2]
[337281673,1725573142381,-990.72183368,0.00028219,2]
[337281674,1725573142391,-967.96819205,0.00028219,2]